fUSD/lending_fUSD_20240905
["ID","MTS","AMOUNT","RATE_DAILY","PERIOD"]
[337217422,1725502269766,-532.82,0.00014989,2]
[337217423,1725502269776,-532.82,0.00014989,2]
[337217424,1725502269786,-654.56,0.00014989,2]
[337217425,1725502269795,-654.56,0.00014989,2]
[337217426,1725502269804,-654.56,0.00014989,2]
[337217427,1725502269813,-654.56,0.00014989,2]
[337217428,1725502269822,-654.56,0.00014989,2]
[337217429,1725502269831,-654.63708618,0.00014989,2]
[337217430,1725502269840,-1296.77,0.00014989,2]
[337217431,1725502269850,-1296.77,0.00014989,2]
[337217432,1725502269859,-1296.77,0.00014989,2]
[337217433,1725502269868,-1296.77,0.00014989,2]
[337217434,1725502269877,-1296.77,0.00014989,2]
[337217435,1725502269888,-1296.77,0.00014989,2]
[337217436,1725502269897,-672.03,0.00014989,2]
[337217437,1725502269906,-672.03,0.00014989,2]
[337217438,1725502269916,-672.03,0.00014989,2]
[337217439,1725502269924,-1718.87,0.00014989,2]
[337217440,1725502269933,-1718.87,0.00014989,2]
[337217441,1725502269942,-672.03,0.00014989,2]
[337217442,1725502269951,-1718.87,0.00014989,2]
[337217443,1725502269960,-672.03,0.00014989,2]
[337217444,1725502269969,-1718.87,0.00014989,2]
[337217445,1725502269978,-1718.87,0.00014989,2]
[337217446,1725502269987,-672.16381278,0.00014989,2]
[337217447,1725502269997,-1719.02777533,0.00014989,2]
[337217448,1725502270006,-2242.12,0.00014989,2]
[337217449,1725502270015,-2242.12,0.00014989,2]
[337217450,1725502270025,-2242.12,0.00014989,2]
[337217451,1725502270034,-2242.12,0.00014989,2]
[337217452,1725502270043,-2242.12,0.00014989,2]
[337217453,1725502270053,-2242.12,0.00014989,2]
[337217454,1725502270063,-1689.95,0.00014989,2]
[337217455,1725502270071,-1689.95,0.00014989,2]
[337217456,1725502270080,-1689.95,0.00014989,2]
[337217457,1725502270090,-1689.95,0.00014989,2]
[337217458,1725502270099,-1689.95,0.00014989,2]
[337217459,1725502270108,-1690.04028371,0.00014989,2]
[337217460,1725502270117,-1449.38,0.00014989,2]
[337217461,1725502270127,-1449.38,0.00014989,2]
[337217462,1725502270138,-1449.38,0.00014989,2]
[337217463,1725502270150,-1449.38,0.00014989,2]
[337217464,1725502270160,-1449.38,0.00014989,2]
[337217465,1725502270170,-1449.38,0.00014989,2]
[337217466,1725502270179,-2505.47,0.00014989,2]
[337217467,1725502270188,-2505.47,0.00014989,2]
[337217468,1725502270198,-2505.47,0.00014989,2]
[337217469,1725502270207,-2505.47,0.00014989,2]
[337217470,1725502270217,-2505.47,0.00014989,2]
[337217471,1725502270226,-2505.53378315,0.00014989,2]
[337217472,1725502270236,-500.0,0.00014989,2]
[337217473,1725502270245,-500.0,0.00014989,2]
[337217474,1725502270254,-500.0,0.00014989,2]
[337217475,1725502270264,-500.0,0.00014989,2]
[337217476,1725502270273,-200.97359729,0.00014989,2]
[337217477,1725502270282,-598.92,0.00014989,2]
[337217478,1725502270291,-598.92,0.00014989,2]
[337217479,1725502270300,-598.92,0.00014989,2]
[337217480,1725502270309,-598.92,0.00014989,2]
[337217481,1725502270319,-598.92,0.00014989,2]
[337217482,1725502270328,-598.92,0.00014989,2]
[337217483,1725502270337,-1250.86,0.00014989,2]
[337217484,1725502270346,-1250.86,0.00014989,2]
[337217485,1725502270355,-1250.86,0.00014989,2]
[337217486,1725502270365,-1250.86,0.00014989,2]
[337217487,1725502270374,-1250.86,0.00014989,2]
[337217488,1725502270385,-1250.93245844,0.00014989,2]
[337217489,1725502270402,-582.22,0.00014989,2]
[337217490,1725502270411,-582.22,0.00014989,2]
[337217491,1725502270420,-1263.54,0.00014989,2]
[337217492,1725502270430,-1263.54,0.00014989,2]
[337217493,1725502270439,-582.22,0.00014989,2]
[337217494,1725502270448,-1263.54,0.00014989,2]
[337217495,1725502270458,-582.22,0.00014989,2]
[337217496,1725502270468,-1263.54,0.00014989,2]
[337217497,1725502270477,-582.22,0.00014989,2]
[337217498,1725502270486,-1263.54,0.00014989,2]
[337217499,1725502270495,-582.22,0.00014989,2]
[337217500,1725502270504,-1263.68600048,0.00014989,2]
[337217501,1725502270514,-1131.93,0.00014989,2]
[337217502,1725502270523,-1131.93,0.00014989,2]
[337217503,1725502270532,-1131.93,0.00014989,2]
[337217504,1725502270542,-1131.93,0.00014989,2]
[337217505,1725502270552,-1131.93,0.00014989,2]
[337217506,1725502270561,-1132.10084074,0.00014989,2]
[337217507,1725502270570,-661.23,0.00014989,2]
[337217508,1725502270579,-661.23,0.00014989,2]
[337217509,1725502270588,-661.23,0.00014989,2]
[337217510,1725502270597,-661.23,0.00014989,2]
[337217511,1725502270606,-661.23,0.00014989,2]
[337217512,1725502270615,-661.23,0.00014989,2]
[337217513,1725502270625,-1844.16,0.00014989,2]
[337217514,1725502270634,-1844.16,0.00014989,2]
[337217515,1725502270649,-1844.16,0.00014989,2]
[337217516,1725502270658,-1585.55,0.00014989,2]
[337217517,1725502270667,-1844.16,0.00014989,2]
[337217518,1725502270676,-1585.55,0.00014989,2]
[337217519,1725502270686,-1844.16,0.00014989,2]
[337217520,1725502270695,-1585.55,0.00014989,2]
[337217521,1725502270704,-1844.30382461,0.00014989,2]
[337217522,1725502270712,-1585.55,0.00014989,2]
[337217523,1725502270722,-1585.55,0.00014989,2]
[337217524,1725502270731,-1585.55,0.00014989,2]
[337217525,1725502270740,-526.8,0.00014989,2]
[337217526,1725502270750,-526.8,0.00014989,2]
[337217527,1725502270759,-526.8,0.00014989,2]
[337217528,1725502270768,-526.8,0.00014989,2]
[337217529,1725502270778,-526.8,0.00014989,2]
[337217530,1725502270787,-526.97529048,0.00014989,2]
[337217531,1725502270796,-1536.8,0.00014989,2]
[337217532,1725502270805,-1536.8,0.00014989,2]
[337217533,1725502270814,-1536.8,0.00014989,2]
[337217534,1725502270823,-1536.8,0.00014989,2]
[337217535,1725502270833,-1536.8,0.00014989,2]
[337217536,1725502270842,-1536.86896086,0.00014989,2]
[337217537,1725502270851,-2011.23,0.00014989,2]
[337217538,1725502270860,-2011.23,0.00014989,2]
[337217539,1725502270869,-2011.23,0.00014989,2]
[337217540,1725502270878,-553.13,0.00014989,2]
[337217541,1725502270887,-2011.23,0.00014989,2]
[337217542,1725502270896,-2011.23,0.00014989,2]
[337217543,1725502270905,-553.13,0.00014989,2]
[337217544,1725502270914,-2011.23,0.00014989,2]
[337217545,1725502270922,-553.13,0.00014989,2]
[337217546,1725502270931,-553.13,0.00014989,2]
[337217547,1725502270940,-553.13,0.00014989,2]
[337217548,1725502270949,-553.27887608,0.00014989,2]
[337217549,1725502270958,-848.09,0.00014989,2]
[337217550,1725502270968,-848.09,0.00014989,2]
[337217551,1725502270977,-848.09,0.00014989,2]
[337217552,1725502270986,-500.0,0.00014989,2]
[337217553,1725502270995,-848.09,0.00014989,2]
[337217554,1725502271004,-391.86,0.00014989,2]
[337217555,1725502271014,-848.09,0.00014989,2]
[337217556,1725502271022,-848.23221601,0.00014989,2]
[337217557,1725502271032,-785.27,0.00014989,2]
[337217558,1725502271041,-785.27,0.00014989,2]
[337217559,1725502271049,-785.27,0.00014989,2]
[337217560,1725502271058,-785.27,0.00014989,2]
[337217561,1725502271067,-785.27,0.00014989,2]
[337217562,1725502271077,-785.27,0.00014989,2]
[337217563,1725502271086,-199.58554988,0.00014989,2]
[337217564,1725502271095,-609.57,0.00014989,2]
[337217565,1725502271105,-609.57,0.00014989,2]
[337217566,1725502271114,-609.57,0.00014989,2]
[337217567,1725502271123,-609.57,0.00014989,2]
[337217568,1725502271132,-609.57,0.00014989,2]
[337217569,1725502271143,-609.72963405,0.00014989,2]
[337217570,1725502271152,-1748.6,0.00014989,2]
[337217571,1725502271161,-1748.6,0.00014989,2]
[337217572,1725502271171,-1748.6,0.00014989,2]
[337217573,1725502271180,-1748.6,0.00014989,2]
[337217574,1725502271189,-1748.6,0.00014989,2]
[337217575,1725502271198,-1748.6,0.00014989,2]
[337217576,1725502271207,-558.3,0.00014989,2]
[337217577,1725502271216,-558.3,0.00014989,2]
[337217578,1725502271225,-558.3,0.00014989,2]
[337217579,1725502271234,-558.3,0.00014989,2]
[337217580,1725502271244,-558.3,0.00014989,2]
[337217581,1725502271253,-753.04,0.00014989,2]
[337217582,1725502271263,-558.46529902,0.00014989,2]
[337217583,1725502271272,-753.04,0.00014989,2]
[337217584,1725502271281,-753.04,0.00014989,2]
[337217585,1725502271290,-753.04,0.00014989,2]
[337217586,1725502271299,-753.04,0.00014989,2]
[337217587,1725502271309,-753.25642199,0.00014989,2]
[337217588,1725502271318,-1555.38,0.00014989,2]
[337217589,1725502271327,-1555.38,0.00014989,2]
[337217590,1725502271335,-1555.38,0.00014989,2]
[337217591,1725502271344,-1555.38,0.00014989,2]
[337217592,1725502271353,-1555.38,0.00014989,2]
[337217593,1725502271362,-1555.38,0.00014989,2]
[337217594,1725502271371,-160.30865325,0.00014989,2]
[337217595,1725502271381,-500.0,0.00014989,2]
[337217596,1725502271394,-892.82,0.00014989,2]
[337217597,1725502271403,-500.0,0.00014989,2]
[337217598,1725502271412,-892.82,0.00014989,2]
[337217599,1725502271422,-892.82,0.00014989,2]
[337217600,1725502271431,-552.67189039,0.00014989,2]
[337217601,1725502271441,-892.82,0.00014989,2]
[337217602,1725502271450,-892.82,0.00014989,2]
[337217603,1725502271461,-892.82,0.00014989,2]
[337217604,1725502271473,-1507.87,0.00014989,2]
[337217605,1725502271482,-1507.87,0.00014989,2]
[337217606,1725502271492,-1507.87,0.00014989,2]
[337217607,1725502271501,-1507.87,0.00014989,2]
[337217608,1725502271510,-1507.87,0.00014989,2]
[337217609,1725502271519,-1507.88,0.00014989,2]
[337217610,1725502271529,-830.42,0.00014989,2]
[337217611,1725502271538,-830.42,0.00014989,2]
[337217612,1725502271547,-830.42,0.00014989,2]
[337217613,1725502271556,-830.42,0.00014989,2]
[337217614,1725502271566,-830.42,0.00014989,2]
[337217615,1725502271575,-830.55386507,0.00014989,2]
[337217616,1725502271584,-640.4,0.00014989,2]
[337217617,1725502271593,-640.4,0.00014989,2]
[337217618,1725502271602,-640.4,0.00014989,2]
[337217619,1725502271612,-640.4,0.00014989,2]
[337217620,1725502271622,-640.4,0.00014989,2]
[337217621,1725502271631,-640.55605531,0.00014989,2]
[337217622,1725502271641,-500.0,0.00014989,2]
[337217623,1725502271650,-500.0,0.00014989,2]
[337217624,1725502271659,-500.0,0.00014989,2]
[337217625,1725502271668,-500.0,0.00014989,2]
[337217626,1725502271677,-500.0,0.00014989,2]
[337217627,1725502271687,-264.03310468,0.00014989,2]
[337217628,1725502271697,-513.32,0.00014989,2]
[337217629,1725502271706,-513.32,0.00014989,2]
[337217630,1725502271715,-513.32,0.00014989,2]
[337217631,1725502271725,-513.32,0.00014989,2]
[337217632,1725502271734,-513.32,0.00014989,2]
[337217633,1725502271743,-513.38432465,0.00014989,2]
[337217634,1725502271752,-2307.61,0.00014989,2]
[337217635,1725502271764,-2307.61,0.00014989,2]
[337217636,1725502271776,-2307.61,0.00014989,2]
[337217637,1725502271786,-2307.61,0.00014989,2]
[337217638,1725502271797,-2307.61,0.00014989,2]
[337217639,1725502271807,-2307.61,0.00014989,2]
[337217640,1725502271817,-2107.48,0.00014989,2]
[337217641,1725502271827,-2107.48,0.00014989,2]
[337217642,1725502271838,-2107.48,0.00014989,2]
[337217643,1725502271848,-2107.48,0.00014989,2]
[337217644,1725502271858,-2107.48,0.00014989,2]
[337217645,1725502271868,-2107.48,0.00014989,2]
[337217646,1725502271878,-500.0,0.00014989,2]
[337217647,1725502271888,-500.0,0.00014989,2]
[337217648,1725502271897,-500.0,0.00014989,2]
[337217649,1725502271906,-236.95900412,0.00014989,2]
[337217650,1725502271915,-1445.89,0.00014989,2]
[337217651,1725502271924,-1445.89,0.00014989,2]
[337217652,1725502271933,-1445.89,0.00014989,2]
[337217653,1725502271943,-1445.89,0.00014989,2]
[337217654,1725502271952,-1445.89,0.00014989,2]
[337217655,1725502271961,-1446.03560768,0.00014989,2]
[337217656,1725502271970,-1677.59,0.00014989,2]
[337217657,1725502271979,-1677.59,0.00014989,2]
[337217658,1725502271988,-1677.59,0.00014989,2]
[337217659,1725502271997,-1677.59,0.00014989,2]
[337217660,1725502272006,-1677.59,0.00014989,2]
[337217661,1725502272014,-1677.60033374,0.00014989,2]
[337217662,1725502272024,-880.76,0.00014989,2]
[337217663,1725502272033,-880.76,0.00014989,2]
[337217664,1725502272042,-880.76,0.00014989,2]
[337217665,1725502272051,-880.76,0.00014989,2]
[337217666,1725502272060,-880.76,0.00014989,2]
[337217667,1725502272070,-880.85569633,0.00014989,2]
[337217668,1725502272079,-500.0,0.00014989,2]
[337217669,1725502272087,-500.0,0.00014989,2]
[337217670,1725502272096,-500.0,0.00014989,2]
[337217671,1725502272105,-467.09781067,0.00014989,2]
[337217672,1725502272114,-659.92,0.00014989,2]
[337217673,1725502272124,-659.92,0.00014989,2]
[337217674,1725502272133,-659.92,0.00014989,2]
[337217675,1725502272146,-659.92,0.00014989,2]
[337217676,1725502272155,-659.92,0.00014989,2]
[337217677,1725502272164,-659.95852556,0.00014989,2]
[337217678,1725502272174,-510.56,0.00014989,2]
[337217679,1725502272183,-510.56,0.00014989,2]
[337217680,1725502272192,-510.56,0.00014989,2]
[337217681,1725502272201,-510.56,0.00014989,2]
[337217682,1725502272210,-510.56,0.00014989,2]
[337217683,1725502272219,-510.77118542,0.00014989,2]
[337217684,1725502272228,-1608.34,0.00014989,2]
[337217685,1725502272237,-1608.34,0.00014989,2]
[337217686,1725502272245,-1608.34,0.00014989,2]
[337217687,1725502272254,-1608.34,0.00014989,2]
[337217688,1725502272263,-1608.34,0.00014989,2]
[337217689,1725502272273,-1608.51,0.00014989,2]
[337217690,1725502272283,-722.78,0.00014989,2]
[337217691,1725502272292,-722.78,0.00014989,2]
[337217692,1725502272302,-722.78,0.00014989,2]
[337217693,1725502272311,-722.78,0.00014989,2]
[337217694,1725502272321,-722.78,0.00014989,2]
[337217695,1725502272330,-722.97675176,0.00014989,2]
[337217696,1725502272340,-500.0,0.00014989,2]
[337217697,1725502272349,-321.84386626,0.00014989,2]
[337217698,1725502272359,-1724.96,0.00014989,2]
[337217699,1725502272368,-1724.96,0.00014989,2]
[337217700,1725502272378,-1724.96,0.00014989,2]
[337217701,1725502272390,-1724.96,0.00014989,2]
[337217702,1725502272403,-1724.96,0.00014989,2]
[337217703,1725502272412,-1725.00587501,0.00014989,2]
[337217704,1725502272422,-500.0,0.00014989,2]
[337217705,1725502272432,-586.14848584,0.00014989,2]
[337217706,1725502272441,-521.82,0.00014989,2]
[337217707,1725502272452,-521.82,0.00014989,2]
[337217708,1725502272463,-521.82,0.00014989,2]
[337217709,1725502272474,-521.82,0.00014989,2]
[337217710,1725502272484,-521.82,0.00014989,2]
[337217711,1725502272495,-521.92176065,0.00014989,2]
[337217712,1725502272505,-587.08,0.00014989,2]
[337217713,1725502272515,-587.08,0.00014989,2]
[337217714,1725502272524,-587.08,0.00014989,2]
[337217715,1725502272534,-587.08,0.00014989,2]
[337217716,1725502272543,-587.08,0.00014989,2]
[337217717,1725502272554,-587.2919009,0.00014989,2]
[337217718,1725502272563,-1590.51,0.00014989,2]
[337217719,1725502272573,-1590.51,0.00014989,2]
[337217720,1725502272582,-1590.51,0.00014989,2]
[337217721,1725502272591,-1590.51,0.00014989,2]
[337217722,1725502272602,-1590.51,0.00014989,2]
[337217723,1725502272612,-1590.63379146,0.00014989,2]
[337217724,1725502272622,-1462.93,0.00014989,2]
[337217725,1725502272632,-1462.93,0.00014989,2]
[337217726,1725502272643,-1462.93,0.00014989,2]
[337217727,1725502272652,-1462.93,0.00014989,2]
[337217728,1725502272661,-1462.93,0.00014989,2]
[337217729,1725502272671,-1462.99009827,0.00014989,2]
[337217730,1725502272682,-654.17,0.00014989,2]
[337217731,1725502272693,-654.17,0.00014989,2]
[337217732,1725502272703,-654.17,0.00014989,2]
[337217733,1725502272713,-654.17,0.00014989,2]
[337217734,1725502272724,-654.17,0.00014989,2]
[337217735,1725502272734,-654.38896867,0.00014989,2]
[337217736,1725502272743,-1611.08,0.00014989,2]
[337217737,1725502272755,-1611.08,0.00014989,2]
[337217738,1725502272766,-1611.08,0.00014989,2]
[337217739,1725502272775,-1611.08,0.00014989,2]
[337217740,1725502272785,-1611.08,0.00014989,2]
[337217741,1725502272795,-1611.19,0.00014989,2]
[337217742,1725502272805,-500.0,0.00014989,2]
[337217743,1725502272815,-500.0,0.00014989,2]
[337217744,1725502272824,-506.74697844,0.00014989,2]
[337217745,1725502272834,-500.0,0.00014989,2]
[337217746,1725502272843,-500.0,0.00014989,2]
[337217747,1725502272853,-500.0,0.00014989,2]
[337217748,1725502272862,-500.0,0.00014989,2]
[337217749,1725502272872,-429.99732574,0.00014989,2]
[337217750,1725502272882,-1175.31,0.00014989,2]
[337217751,1725502272892,-1175.31,0.00014989,2]
[337217752,1725502272901,-1175.31,0.00014989,2]
[337217753,1725502272911,-1175.31,0.00014989,2]
[337217754,1725502272920,-1175.31,0.00014989,2]
[337217755,1725502272929,-1175.31784071,0.00014989,2]
[337217756,1725502272939,-510.09,0.00014989,2]
[337217757,1725502272949,-510.09,0.00014989,2]
[337217758,1725502272958,-510.09,0.00014989,2]
[337217759,1725502272968,-510.09,0.00014989,2]
[337217760,1725502272978,-510.09,0.00014989,2]
[337217761,1725502272987,-510.19163816,0.00014989,2]
[337217762,1725502272997,-211.76498221,0.00014989,2]
[337217763,1725502273007,-376.63980224,0.00014989,2]
[337217764,1725502273016,-502.43,0.00014989,2]
[337217765,1725502273025,-566.68,0.00014989,2]
[337217766,1725502273035,-523.34,0.00014989,2]
[337217767,1725502273045,-500.0,0.00014989,2]
[337217768,1725502273054,-500.0,0.00014989,2]
[337217769,1725502273063,-684.18,0.00014989,2]
[337217770,1725502273073,-689.4,0.00014989,2]
[337217771,1725502273083,-500.0,0.00014989,2]
[337217772,1725502273092,-500.0,0.00014989,2]
[337217773,1725502273102,-500.0,0.00014989,2]
[337217774,1725502273111,-523.43,0.00014989,2]
[337217775,1725502273121,-1063.87,0.00014989,2]
[337217776,1725502273131,-500.0,0.00014989,2]
[337217777,1725502273142,-748.34,0.00014989,2]
[337217778,1725502273151,-680.6,0.00014989,2]
[337217779,1725502273161,-1068.03,0.00014989,2]
[337217780,1725502273170,-1165.14,0.00014989,2]
[337217781,1725502273180,-626.51,0.00014989,2]
[337217782,1725502273189,-315.19029348,0.00014989,2]
[337217783,1725502273199,-738.86,0.00014989,2]
[337217784,1725502273208,-500.0,0.00014989,2]
[337217785,1725502273219,-778.18,0.00014989,2]
[337217786,1725502273228,-500.0,0.00014989,2]
[337217787,1725502273237,-870.19,0.00014989,2]
[337217788,1725502273247,-1346.71,0.00014989,2]
[337217789,1725502273256,-1038.65,0.00014989,2]
[337217790,1725502273267,-500.0,0.00014989,2]
[337217791,1725502273276,-500.0,0.00014989,2]
[337217792,1725502273286,-500.0,0.00014989,2]
[337217793,1725502273296,-543.64,0.00014989,2]
[337217794,1725502273306,-451.99332565,0.00014989,2]
[337217795,1725502273316,-535.96,0.00014989,2]
[337217796,1725502273326,-1725.32,0.00014989,2]
[337217797,1725502273336,-1180.11,0.00014989,2]
[337217798,1725502273345,-665.85,0.00014989,2]
[337217799,1725502273354,-1249.95,0.00014989,2]
[337217800,1725502273364,-885.56,0.00014989,2]
[337217801,1725502273374,-1243.05,0.00014989,2]
[337217802,1725502273385,-500.0,0.00014989,2]
[337217803,1725502273398,-691.61,0.00014989,2]
[337217804,1725502273407,-618.57,0.00014989,2]
[337217805,1725502273417,-868.1,0.00014989,2]
[337217806,1725502273428,-500.0,0.00014989,2]
[337217807,1725502273439,-698.95,0.00014989,2]
[337217808,1725502273451,-3102.6,0.00014989,2]
[337217809,1725502273462,-3249.89,0.00014989,2]
[337217810,1725502273473,-154.42760926,0.00014989,2]
[337217811,1725502273482,-500.0,0.00014989,2]
[337217812,1725502273492,-1279.21,0.00014989,2]
[337217813,1725502273501,-754.65,0.00014989,2]
[337217814,1725502273511,-1426.28,0.00014989,2]
[337217815,1725502273520,-2965.78,0.00014989,2]
[337217816,1725502273529,-5288.71,0.00014989,2]
[337217817,1725502273538,-1559.65660416,0.00014989,2]
[337217818,1725502273577,-459.33339584,0.00014989,2]
[337217819,1725502273586,-789.55,0.00014989,2]
[337217820,1725502273596,-775.72,0.00014989,2]
[337217821,1725502273605,-1066.15,0.00014989,2]
[337217822,1725502273614,-869.3,0.00014989,2]
[337217823,1725502273624,-518.07429871,0.00014989,2]
[337217824,1725502273633,-500.0,0.00014989,2]
[337217825,1725502273643,-1021.79,0.00014989,2]
[337217826,1725502273653,-922.89,0.00014989,2]
[337217827,1725502273663,-500.0,0.00014989,2]
[337217828,1725502273672,-1317.19230542,0.00014989,2]
[337217829,1725502273684,-489.80769458,0.00014989,2]
[337217830,1725502273694,-2541.07,0.00014989,2]
[337217831,1725502273704,-500.0,0.00014989,2]
[337217832,1725502273714,-591.92,0.00014989,2]
[337217833,1725502273725,-546.34,0.00014989,2]
[337217834,1725502273735,-552.38,0.00014989,2]
[337217835,1725502273744,-500.0,0.00014989,2]
[337217836,1725502273755,-588.03,0.00014989,2]
[337217837,1725502273765,-1053.46,0.00014989,2]
[337217838,1725502273775,-500.0,0.00014989,2]
[337217839,1725502273785,-573.64,0.00014989,2]
[337217840,1725502273794,-659.99603656,0.00014989,2]
[337217841,1725502273807,-2059.80396344,0.00014989,2]
[337217842,1725502273817,-846.14,0.00014989,2]
[337217843,1725502273826,-500.0,0.00014989,2]
[337217844,1725502273836,-989.47,0.00014989,2]
[337217845,1725502273846,-1269.37,0.00014989,2]
[337217846,1725502273855,-1302.95,0.00014989,2]
[337217847,1725502273864,-735.55,0.00014989,2]
[337217848,1725502273874,-759.75,0.00014989,2]
[337217849,1725502273883,-484.18483129,0.00014989,2]
[337217850,1725502273898,-907.27516871,0.00014989,2]
[337217851,1725502273911,-500.0,0.00014989,2]
[337217852,1725502273920,-545.5,0.00014989,2]
[337217853,1725502273929,-1426.67,0.00014989,2]
[337217854,1725502273939,-518.55,0.00014989,2]
[337217855,1725502273948,-646.65,0.00014989,2]
[337217856,1725502273959,-500.0,0.00014989,2]
[337217857,1725502273969,-1116.35,0.00014989,2]
[337217858,1725502273978,-500.0,0.00014989,2]
[337217859,1725502273988,-598.14,0.00014989,2]
[337217860,1725502273997,-947.64,0.00014989,2]
[337217861,1725502274007,-737.00869591,0.00014989,2]
[337217862,1725502274019,-190.39130409,0.00014989,2]
[337217863,1725502274029,-677.56,0.00014989,2]
[337217864,1725502274038,-500.0,0.00014989,2]
[337217865,1725502274048,-500.0,0.00014989,2]
[337217866,1725502274057,-830.56,0.00014989,2]
[337217867,1725502274067,-500.0,0.00014989,2]
[337217868,1725502274077,-500.0,0.00014989,2]
[337217869,1725502274086,-709.38,0.00014989,2]
[337217870,1725502274096,-1019.32,0.00014989,2]
[337217871,1725502274105,-500.0,0.00014989,2]
[337217872,1725502274115,-150.5,0.00014989,30]
[337217873,1725502274125,-150.5,0.00014989,30]
[337217874,1725502274135,-2802.27,0.00014989,2]
[337217875,1725502274146,-47.06735743,0.00014989,2]
[337217876,1725502274158,-605.62264257,0.00014989,2]
[337217877,1725502274168,-151.0,0.00014989,2]
[337217878,1725502274178,-2751.52,0.00014989,2]
[337217879,1725502274187,-151.0,0.00014989,2]
[337217880,1725502274197,-1016.74,0.00014989,2]
[337217881,1725502274207,-3672.75,0.00014989,2]
[337217882,1725502274217,-595.20759232,0.00014989,2]
[337217883,1725502274229,-929.09240768,0.00014989,2]
[337217884,1725502274239,-8066.97,0.00014989,2]
[337217885,1725502274249,-5714.32,0.00014989,2]
[337217886,1725502274259,-8553.38,0.00014989,2]
[337217887,1725502274268,-500.0,0.00014989,2]
[337217888,1725502274278,-771.03,0.00014989,2]
[337217889,1725502274287,-3230.85,0.00014989,2]
[337217890,1725502274297,-890.6,0.00014989,2]
[337217891,1725502274307,-685.43,0.00014989,2]
[337217892,1725502274317,-1112.21,0.00014989,2]
[337217893,1725502274327,-500.0,0.00014989,2]
[337217894,1725502274336,-730.44,0.00014989,2]
[337217895,1725502274347,-730.44,0.00014989,2]
[337217896,1725502274357,-730.44,0.00014989,2]
[337217897,1725502274368,-730.44,0.00014989,2]
[337217898,1725502274377,-730.59619512,0.00014989,2]
[337217899,1725502274388,-500.0,0.00014989,2]
[337217900,1725502274401,-500.0,0.00014989,2]
[337217901,1725502274411,-1716.15,0.00014989,2]
[337217902,1725502274422,-1716.15,0.00014989,2]
[337217903,1725502274431,-174.31363454,0.00014989,2]
[337217904,1725502274447,-1541.83636546,0.00014989,2]
[337217905,1725502274458,-1716.15,0.00014989,2]
[337217906,1725502274468,-1716.31087374,0.00014989,2]
[337217907,1725502274480,-500.0,0.00014989,2]
[337217908,1725502274490,-500.0,0.00014989,2]
[337217909,1725502274499,-292.719751,0.00014989,2]
[337217910,1725502274509,-546.52,0.00014989,2]
[337217911,1725502274518,-569.84451714,0.00014989,2]
[337217912,1725502274527,-151.0,0.00014989,2]
[337217913,1725502274537,-151.0,0.00014989,2]
[337217914,1725502274546,-151.0,0.00014989,2]
[337217915,1725502274555,-183.576943,0.00014989,2]
[337217916,1725502274565,-157.797812,0.00014989,2]
[337217917,1725502274575,-7530.58,0.00014989,2]
[337217918,1725502274585,-7530.58,0.00014989,2]
[337217919,1725502274595,-1690.2000487,0.00014989,2]
[337217920,1725502274607,-1092.27862809,0.00014989,2]
[337217921,1725502274620,-1942.37721319,0.00014989,2]